[Event "21st Sants Open 2019"]
[Site "Cotxeres de Sants"]
[Date "2019.08.23"]
[Round "1.13"]
[White "Gines Esteo, Pedro Antonio"]
[Black "Kamalidenova, Meruert"]
[Result "1-0"]
[ECO "E90"]
[WhiteElo "2417"]
[BlackElo "2036"]
[Annotator "NA"]
[PlyCount "116"]
[EventDate "2019.08.22"]
[EventType "swiss"]
[EventCountry "ESP"]
[SourceTitle "playchess.com"]
[Source "ChessBase"]
[SourceQuality "1"]
[TimeControl "40/5400+30:1800+30"]

1. d4 Nf6 {[%emt 0:00:00]} 2. Nf3 {[%emt 0:00:06]} g6 3. c4 {[%emt 0:00:43]} Bg7 {[%emt 0:00:14]} 4. Nc3 {[%emt 0:00:10]} O-O {[%emt 0:00:09]} 5. e4 {[%emt 0:00:14]} d6 {[%emt 0:00:20]} 6. Be3 {[%emt 0:00:13]} e5 {[%emt 0:00:27]} 7. dxe5 {[%emt 0:00:16]} dxe5 {[%emt 0:00:16]} 8. Qxd8 {[%emt 0:00:07]} Rxd8 {[%emt 0:00:20]} 9. Nd5 {[%emt 0:00:12]} Rd7 {[%emt 0:01:25]} 10. Nxf6+ {[%emt 0:01:36]} Bxf6 {[%emt 0:00:21]} 11. c5 {[%emt 0:00:06]} b6 {[%emt 0:02:15]} 12. Bc4 {[%emt 0:06:35]} Bb7 {[%emt 0:02:56]} 13. Nd2 {[%emt 0:00:45]} Be7 {[%emt 0:02:41]} 14. f3 {[%emt 0:07:44]} bxc5 {[%emt 0:06:40]} 15. O-O-O {[%emt 0:29:02]} Nc6 {[%emt 0:04:51]} 16. Bd5 {[%emt 0:01:34]} Rxd5 {[%emt 0:05:04]} 17. exd5 {[%emt 0:00:06]} Nd4 {[%emt 0:00:37]} 18. Rhe1 {[%emt 0:03:45]} f6 {[%emt 0:02:15]} 19. Kb1 {[%emt 0:23:22]} Bxd5 {[%emt 0:04:04]} 20. Rc1 {[%emt 0:00:03]} Bd6 {[%emt 0:02:14]} 21. Ne4 {[%emt 0:00:43]} Bxe4+ {[%emt 0:04:37]} 22. fxe4 {[%emt 0:00:02]} f5 {[%emt 0:01:38]} 23. exf5 {[%emt 0:05:13]} gxf5 {[%emt 0:00:16]} 24. g4 {[%emt 0:11:13]} f4 {[%emt 0:01:46]} 25. Bxd4 {[%emt 0:00:01]} cxd4 {[%emt 0:00:19]} 26. Kc2 {[%emt 0:00:01]} Kf7 {[%emt 0:02:52]} 27. Kd3 {[%emt 0:00:05]} Ke6 {[%emt 0:01:01]} 28. Ke4 {[%emt 0:00:05]} a5 {[%emt 0:01:36]} 29. Red1 {[%emt 0:03:27]} a4 {[%emt 0:02:16]} 30. Rd3 {[%emt 0:00:54]} Rg8 {[%emt 0:02:24]} 31. Rg1 {[%emt 0:03:10]} c5 {[%emt 0:03:52]} 32. Rh3 {[%emt 0:00:59]} c4 {[%emt 0:02:59]} 33. Rh6+ {[%emt 0:03:24]} Rg6 {[%emt 0:01:45]} 34. Rxh7 {[%emt 0:00:01]} a3 {[%emt 0:02:36]} 35. b3 {[%emt 0:00:55]} c3 {[%emt 0:01:59]} 36. h4 {[%emt 0:00:34]} f3 {[%emt 0:03:36]} 37. g5 {[%emt 0:00:05]} Rg8 {[%emt 0:00:31]} 38. Rh6+ {[%emt 0:00:22]} Ke7 {[%emt 0:00:52]} 39. Rh7+ {[%emt 0:00:53]} Ke6 {[%emt 0:01:58]} 40. Rh6+ {[%emt 0:00:00]} Ke7 {[%emt 0:00:00]} 41. Rf6 {[%emt 0:17:55]} Rh8 {[%emt 0:01:58]} 42. Rxf3 {[%emt 0:00:15]} Rxh4+ {[%emt 0:01:32]} 43. Kd5 {[%emt 0:00:06]} c2 {[%emt 0:05:00]} 44. g6 {[%emt 0:07:35]} Rg4 {[%emt 0:01:15]} 45. Rf7+ {[%emt 0:02:14]} Ke8 {[%emt 0:00:15]} 46. Rff1 {[%emt 0:01:14]} Rxg1 {[%emt 0:01:30]} 47. Rxg1 {[%emt 0:00:01]} Kf8 {[%emt 0:01:55]} 48. Ke4 {[%emt 0:01:13]} Kg7 {[%emt 0:00:39]} 49. Kd3 {[%emt 0:01:53]} Bc5 {[%emt 0:01:30]} 50. Rc1 {[%emt 0:00:48]} Kxg6 {[%emt 0:00:46]} 51. Rxc2 {[%emt 0:00:06]} Bb4 {[%emt 0:00:27]} 52. Ke4 {[%emt 0:01:28]} Kf6 {[%emt 0:02:20]} 53. Rc6+ {[%emt 0:00:03]} Ke7 {[%emt 0:00:15]} 54. Kxe5 {[%emt 0:00:22]} d3 {[%emt 0:00:06]} 55. Rc7+ {[%emt 0:00:21]} Ke8 {[%emt 0:01:23]} 56. Rc1 {[%emt 0:00:38]} Kd7 {[%emt 0:00:22]} 57. Rd1 {[%emt 0:00:08]} d2 {[%emt 0:00:06]} 58. Kd4 {[%emt 0:00:03]} Kd6 {[%emt 0:00:45]} 1-0

[Event "21st Sants Open 2019"]
[Site "Cotxeres de Sants"]
[Date "2019.08.23"]
[Round "1.14"]
[White "Boyer Censore, Giuseppe Enmanuel"]
[Black "Harika, Dronavalli"]
[Result "1/2-1/2"]
[ECO "C16"]
[WhiteElo "2094"]
[BlackElo "2495"]
[Annotator "ChessBase"]
[PlyCount "100"]
[EventDate "2019.08.22"]
[EventType "swiss"]
[EventCountry "ESP"]
[SourceTitle "playchess.com"]
[Source "ChessBase"]
[SourceQuality "1"]
[TimeControl "40/5400+30:1800+30"]

1. e4 {[%emt 0:00:00]} e6 {[%emt 0:00:00]} 2. d4 {[%emt 0:00:00]} d5 {[%emt 0:00:00]} 3. Nc3 {[%emt 0:00:00]} Bb4 {[%emt 0:00:00]} 4. e5 {[%emt 0:00:00]} Qd7 {[%emt 0:00:21]} 5. Nf3 {[%emt 0:02:14]} b6 {[%emt 0:02:46]} 6. a3 {[%emt 0:01:01]} Bxc3+ {[%emt 0:01:32]} 7. bxc3 {[%emt 0:00:02]} Ne7 {[%emt 0:03:05]} 8. a4 {[%emt 0:02:20]} Nbc6 {[%emt 0:05:36]} 9. Bd3 {[%emt 0:05:30]} Bb7 {[%emt 0:02:35]} 10. O-O {[%emt 0:04:30]} h6 {[%emt 0:09:57]} 11. Re1 {[%emt 0:10:03]} Na5 {[%emt 0:04:05]} 12. Ba3 {[%emt 0:20:41]} Nec6 {[%emt 0:06:39]} 13. Nd2 {[%emt 0:03:31]} O-O-O {[%emt 0:03:24]} 14. Qe2 {[%emt 0:02:20]} Kb8 {[%emt 0:00:59]} 15. Bb5 {[%emt 0:01:11]} Qc8 {[%emt 0:02:16]} 16. Rab1 {[%emt 0:08:50]} Rdg8 {[%emt 0:12:31]} 17. Bb4 {[%emt 0:12:56]} Ka8 {[%emt 0:02:32]} 18. Ra1 {[%emt 0:02:15]} a6 {[%emt 0:03:07]} 19. Bd3 {[%emt 0:00:55]} Ka7 {[%emt 0:00:27]} 20. Ra2 {[%emt 0:07:28]} Qd7 {[%emt 0:01:43]} 21. Rb2 {[%emt 0:00:29]} Rc8 {[%emt 0:06:23]} 22. Reb1 {[%emt 0:00:20]} f6 {[%emt 0:01:02]} 23. Nb3 {[%emt 0:00:40]} Nxb4 {[%emt 0:05:34]} 24. cxb4 {[%emt 0:05:51]} Nc4 {[%emt 0:06:38]} 25. Ra2 {[%emt 0:00:20]} fxe5 {[%emt 0:03:28]} 26. dxe5 {[%emt 0:00:02]} Rhf8 {[%emt 0:01:49]} 27. a5 {[%emt 0:00:38]} b5 {[%emt 0:01:22]} 28. Nc5 {[%emt 0:01:02]} Qc6 {[%emt 0:00:12]} 29. Rd1 {[%emt 0:03:03]} g5 {[%emt 0:02:05]} 30. Bxc4 {[%emt 0:02:45]} dxc4 {[%emt 0:00:08]} 31. Nxb7 {[%emt 0:00:16]} Kxb7 {[%emt 0:00:07]} 32. c3 {[%emt 0:00:27]} Rcd8 {[%emt 0:00:40]} 33. Rad2 {[%emt 0:00:09]} Rxd2 {[%emt 0:00:24]} 34. Rxd2 {[%emt 0:00:05]} Rf4 {[%emt 0:02:11]} 35. f3 {[%emt 0:00:10]} Rf7 {[%emt 0:00:10]} 36. Rd4 {[%emt 0:00:32]} Rd7 {[%emt 0:04:58]} 37. Qd2 {[%emt 0:01:06]} Rxd4 {[%emt 0:00:11]} 38. Qxd4 {[%emt 0:00:02]} Qe8 {[%emt 0:01:01]} 39. Kf2 {[%emt 0:00:34]} Kb8 {[%emt 0:03:04]} 40. Ke3 {[%emt 0:00:00]} h5 {[%emt 0:00:00]} 41. h3 {[%emt 0:11:23]} Qe7 {[%emt 0:06:07]} 42. g3 Qe8 {[%emt 0:01:29]} 43. Qe4 {[%emt 0:02:52]} Qh8 {[%emt 0:03:54]} 44. Qd4 {[%emt 0:00:28]} Qe8 {[%emt 0:05:27]} 45. Qe4 {[%emt 0:01:03]} Qd8 {[%emt 0:00:56]} 46. Qd4 {[%emt 0:00:13]} Qh8 {[%emt 0:00:21]} 47. Qe4 {[%emt 0:01:44]} Qh6 {[%emt 0:04:42]} 48. Ke2 {[%emt 0:04:34]} Qh8 {[%emt 0:06:39]} 49. Ke3 {[%emt 0:00:49]} Qh6 {[%emt 0:00:58]} 50. Ke2 {[%emt 0:00:15]} Qh8 {[%emt 0:00:23]} 1/2-1/2

[Event "21st Sants Open 2019"]
[Site "Cotxeres de Sants"]
[Date "2019.08.23"]
[Round "1.15"]
[White "Rodriguez Regull, German"]
[Black "Terron Roca, Rafael"]
[Result "1-0"]
[ECO "B01"]
[WhiteElo "1944"]
[BlackElo "1713"]
[Annotator "NA"]
[PlyCount "85"]
[EventDate "2019.08.22"]
[EventType "swiss"]
[EventCountry "ESP"]
[SourceTitle "playchess.com"]
[Source "ChessBase"]
[SourceQuality "1"]
[TimeControl "40/5400+30:1800+30"]

1. e4 {[%emt 0:00:21]} d5 {[%emt 0:00:04]} 2. exd5 {[%emt 0:00:52]} Qxd5 {[%emt 0:00:12]} 3. Nc3 {[%emt 0:00:38]} Qd6 {[%emt 0:00:19]} 4. Nf3 {[%emt 0:03:07]} Nc6 {[%emt 0:01:34]} 5. h3 {[%emt 0:12:51]} Nf6 {[%emt 0:03:37]} 6. Bb5 {[%emt 0:02:09]} Bf5 {[%emt 0:02:21]} 7. d3 {[%emt 0:01:53]} a6 {[%emt 0:09:03]} 8. Ba4 {[%emt 0:01:12]} b5 {[%emt 0:00:47]} 9. Bb3 {[%emt 0:00:04]} Na5 {[%emt 0:00:24]} 10. O-O {[%emt 0:08:11]} Nxb3 {[%emt 0:02:29]} 11. axb3 {[%emt 0:00:04]} g6 {[%emt 0:05:14]} 12. Nxb5 {[%emt 0:00:29]} Qb6 {[%emt 0:02:08]} 13. Nbd4 {[%emt 0:02:02]} Bc8 {[%emt 0:01:20]} 14. Re1 {[%emt 0:04:46]} Bb7 {[%emt 0:01:17]} 15. b4 {[%emt 0:08:02]} Qxb4 {[%emt 0:04:54]} 16. Bd2 {[%emt 0:00:15]} Qd6 {[%emt 0:00:19]} 17. Nb3 {[%emt 0:03:15]} Bg7 {[%emt 0:04:43]} 18. Na5 {[%emt 0:00:34]} Bd5 {[%emt 0:02:45]} 19. Ne5 {[%emt 0:02:44]} Nd7 {[%emt 0:05:04]} 20. Nec4 {[%emt 0:01:03]} Bxc4 {[%emt 0:05:09]} 21. Nxc4 {[%emt 0:04:17]} Qd5 {[%emt 0:02:05]} 22. Ra5 {[%emt 0:06:47]} Qb7 {[%emt 0:01:26]} 23. b3 {[%emt 0:01:09]} e6 {[%emt 0:00:40]} 24. Qc1 {[%emt 0:04:41]} O-O {[%emt 0:04:24]} 25. Ra2 {[%emt 0:04:23]} Qd5 {[%emt 0:01:05]} 26. Bh6 {[%emt 0:00:41]} Nb6 {[%emt 0:01:12]} 27. Bxg7 {[%emt 0:00:36]} Kxg7 {[%emt 0:00:12]} 28. Qb2+ {[%emt 0:00:34]} Kg8 {[%emt 0:00:47]} 29. Ne3 {[%emt 0:00:23]} Qg5 {[%emt 0:01:10]} 30. Ng4 {[%emt 0:00:24]} Nd7 {[%emt 0:00:47]} 31. Ra5 {[%emt 0:02:11]} Qd2 {[%emt 0:00:45]} 32. Rea1 {[%emt 0:00:52]} h5 {[%emt 0:01:30]} 33. Ne3 {[%emt 0:02:45]} Rad8 {[%emt 0:05:23]} 34. Nf1 {[%emt 0:00:51]} Qe2 {[%emt 0:00:24]} 35. Ng3 {[%emt 0:00:15]} Qd2 {[%emt 0:02:53]} 36. Ne4 {[%emt 0:01:40]} Qe2 {[%emt 0:02:55]} 37. Rxa6 {[%emt 0:00:25]} Nb6 {[%emt 0:05:21]} 38. Nf6+ {[%emt 0:00:42]} Kg7 {[%emt 0:00:19]} 39. Nd7+ {[%emt 0:07:42]} f6 {[%emt 0:02:00]} 40. Nxf8 {[%emt 0:00:00]} Rxf8 {[%emt 0:00:00]} 41. Qc3 {[%emt 0:01:17]} Rf7 {[%emt 0:00:34]} 42. Rxb6 {[%emt 0:01:31]} cxb6 {[%emt 0:00:38]} 43. Re1 1-0

[Event "21st Sants Open 2019"]
[Site "Cotxeres de Sants"]
[Date "2019.08.23"]
[Round "1.16"]
[White "Giammona, Federico"]
[Black "Walter Travella, German"]
[Result "1-0"]
[ECO "A53"]
[WhiteElo "1713"]
[BlackElo "1940"]
[Annotator "NA"]
[PlyCount "51"]
[EventDate "2019.08.22"]
[EventType "swiss"]
[EventCountry "ESP"]
[SourceTitle "playchess.com"]
[Source "ChessBase"]
[SourceQuality "1"]
[TimeControl "40/5400+30:1800+30"]

1. d4 {[%emt 0:00:00]} Nf6 {[%emt 0:02:12]} 2. c4 {[%emt 0:00:00]} d6 {[%emt 0:00:11]} 3. Nf3 {[%emt 0:00:38]} c6 {[%emt 0:00:22]} 4. Nc3 {[%emt 0:00:23]} Bf5 {[%emt 0:01:38]} 5. g3 {[%emt 0:01:58]} Nbd7 {[%emt 0:01:04]} 6. Bg2 {[%emt 0:00:18]} e5 {[%emt 0:01:14]} 7. O-O {[%emt 0:01:26]} Be7 {[%emt 0:03:34]} 8. Re1 {[%emt 0:00:23]} h6 {[%emt 0:02:01]} 9. e4 {[%emt 0:10:41]} Bg4 {[%emt 0:01:40]} 10. Be3 {[%emt 0:02:39]} Qa5 {[%emt 0:14:54]} 11. Qd2 {[%emt 0:21:30]} Bxf3 {[%emt 0:03:15]} 12. Bxf3 {[%emt 0:01:15]} exd4 {[%emt 0:03:31]} 13. Bxd4 {[%emt 0:00:39]} Ne5 {[%emt 0:01:56]} 14. Be2 {[%emt 0:01:18]} g5 {[%emt 0:01:55]} 15. b4 {[%emt 0:08:17]} Qc7 {[%emt 0:05:48]} 16. Kh1 {[%emt 0:09:36]} g4 {[%emt 0:03:27]} 17. Qe3 {[%emt 0:18:27]} h5 {[%emt 0:06:45]} 18. Bxa7 {[%emt 0:04:12]} h4 {[%emt 0:01:46]} 19. Bd4 {[%emt 0:01:18]} hxg3 {[%emt 0:00:42]} 20. fxg3 {[%emt 0:00:40]} Ra3 {[%emt 0:07:54]} 21. Nb5 {[%emt 0:01:38]} cxb5 {[%emt 0:00:20]} 22. Qxa3 {[%emt 0:00:17]} Nxe4 {[%emt 0:02:40]} 23. cxb5 {[%emt 0:05:41]} Qc2 {[%emt 0:02:17]} 24. Rac1 {[%emt 0:01:41]} Nf3 {[%emt 0:02:53]} 25. Bxh8 {[%emt 0:00:17]} Nf2+ {[%emt 0:01:06]} 26. Kg2 {[%emt 0:00:15]} 1-0

[Event "21st Sants Open 2019"]
[Site "Cotxeres de Sants"]
[Date "2019.08.23"]
[Round "1.17"]
[White "Morais Carreras, Javier"]
[Black "Alvaro Hermosa, Ramon"]
[Result "1-0"]
[ECO "C00"]
[WhiteElo "1939"]
[BlackElo "1711"]
[Annotator "NA"]
[PlyCount "139"]
[EventDate "2019.08.22"]
[EventType "swiss"]
[EventCountry "ESP"]
[SourceTitle "playchess.com"]
[Source "ChessBase"]
[SourceQuality "1"]
[TimeControl "40/5400+30:1800+30"]

1. e4 {[%emt 0:07:46]} e6 {[%emt 0:00:00]} 2. d3 {[%emt 0:00:08]} c5 {[%emt 0:00:02]} 3. Nf3 {[%emt 0:00:13]} Nc6 {[%emt 0:00:22]} 4. g3 {[%emt 0:00:08]} g6 {[%emt 0:00:39]} 5. Bg2 {[%emt 0:00:12]} Bg7 {[%emt 0:00:18]} 6. O-O {[%emt 0:00:34]} Nge7 {[%emt 0:00:40]} 7. c3 {[%emt 0:00:40]} e5 {[%emt 0:01:32]} 8. Be3 {[%emt 0:02:08]} d6 {[%emt 0:00:35]} 9. Qd2 {[%emt 0:02:53]} h6 {[%emt 0:08:33]} 10. Na3 {[%emt 0:02:46]} Be6 {[%emt 0:06:15]} 11. d4 {[%emt 0:05:58]} exd4 {[%emt 0:06:37]} 12. cxd4 {[%emt 0:00:47]} Bg4 {[%emt 0:09:59]} 13. d5 {[%emt 0:05:26]} Bxf3 {[%emt 0:07:56]} 14. Bxf3 {[%emt 0:01:28]} Ne5 {[%emt 0:00:44]} 15. Be2 {[%emt 0:02:24]} Qc8 {[%emt 0:11:46]} 16. Bb5+ {[%emt 0:03:41]} Kf8 {[%emt 0:01:55]} 17. Be2 {[%emt 0:04:52]} Kg8 {[%emt 0:04:02]} 18. Nb5 {[%emt 0:04:50]} Qd7 {[%emt 0:02:24]} 19. f4 {[%emt 0:01:43]} Ng4 {[%emt 0:00:33]} 20. Bxg4 {[%emt 0:02:47]} Qxb5 {[%emt 0:00:43]} 21. Rab1 {[%emt 0:00:37]} f5 {[%emt 0:06:05]} 22. exf5 {[%emt 0:03:27]} Nxf5 {[%emt 0:00:17]} 23. Bxf5 {[%emt 0:00:48]} gxf5 {[%emt 0:00:04]} 24. Qc2 {[%emt 0:00:43]} Qd7 {[%emt 0:01:01]} 25. Rfe1 {[%emt 0:02:54]} Kh7 {[%emt 0:01:22]} 26. Bf2 {[%emt 0:03:51]} Rae8 {[%emt 0:01:41]} 27. g4 {[%emt 0:05:00]} Rhf8 {[%emt 0:04:09]} 28. gxf5 {[%emt 0:03:19]} Rxe1+ {[%emt 0:02:31]} 29. Rxe1 {[%emt 0:00:13]} Qxf5 {[%emt 0:01:28]} 30. Qxf5+ {[%emt 0:00:20]} Rxf5 {[%emt 0:00:07]} 31. Re7 {[%emt 0:00:11]} Rxd5 {[%emt 0:02:55]} 32. Rxb7 {[%emt 0:01:33]} Rd1+ {[%emt 0:00:27]} 33. Kg2 {[%emt 0:00:52]} Rd2 {[%emt 0:00:22]} 34. Rxa7 {[%emt 0:02:24]} Rxb2 {[%emt 0:02:02]} 35. Kf3 {[%emt 0:01:28]} Kg6 {[%emt 0:01:24]} 36. f5+ {[%emt 0:00:50]} Kf6 {[%emt 0:01:16]} 37. Bh4+ {[%emt 0:04:18]} Kxf5 {[%emt 0:01:39]} 38. Rxg7 {[%emt 0:00:27]} Rxh2 {[%emt 0:00:45]} 39. Bf2 {[%emt 0:00:12]} Rh3+ {[%emt 0:01:44]} 40. Bg3 {[%emt 0:00:00]} Rh1 {[%emt 0:00:00]} 41. Bxd6 {[%emt 0:03:47]} Ra1 {[%emt 0:07:40]} 42. Ra7 {[%emt 0:00:47]} c4 {[%emt 0:00:48]} 43. a3 {[%emt 0:01:57]} c3 {[%emt 0:13:00]} 44. Rc7 {[%emt 0:03:30]} Rc1 {[%emt 0:01:05]} 45. Rc5+ {[%emt 0:00:20]} Kg6 {[%emt 0:02:30]} 46. Bf4 {[%emt 0:02:49]} Rc2 {[%emt 0:04:25]} 47. Rc6+ {[%emt 0:01:21]} Kf5 {[%emt 0:01:41]} 48. Bxh6 {[%emt 0:06:02]} Ke5 {[%emt 0:01:38]} 49. Be3 {[%emt 0:02:41]} Kd5 {[%emt 0:01:39]} 50. Rc5+ {[%emt 0:02:41]} Kd6 {[%emt 0:00:42]} 51. Ke4 {[%emt 0:06:51]} Ke6 {[%emt 0:05:59]} 52. Kd3 {[%emt 0:00:54]} Ra2 {[%emt 0:01:00]} 53. Rxc3 {[%emt 0:00:08]} Kd5 {[%emt 0:00:26]} 54. Bg5 {[%emt 0:04:00]} Ra1 {[%emt 0:01:14]} 55. Kc2 {[%emt 0:00:22]} Rg1 {[%emt 0:00:56]} 56. Be3 {[%emt 0:01:20]} Rg8 {[%emt 0:03:08]} 57. a4 {[%emt 0:00:28]} Ra8 {[%emt 0:00:46]} 58. Kb3 {[%emt 0:00:23]} Rb8+ {[%emt 0:00:46]} 59. Ka3 {[%emt 0:00:16]} Ra8 {[%emt 0:00:29]} 60. Bb6 {[%emt 0:00:09]} Kd6 {[%emt 0:01:21]} 61. a5 {[%emt 0:00:08]} Kd7 {[%emt 0:00:46]} 62. Ka4 {[%emt 0:00:06]} Rc8 {[%emt 0:00:19]} 63. Rh3 {[%emt 0:01:41]} Kc6 {[%emt 0:00:17]} 64. Rh6+ {[%emt 0:00:10]} Kb7 {[%emt 0:00:40]} 65. Kb5 {[%emt 0:00:13]} Rg8 {[%emt 0:01:11]} 66. Rh7+ {[%emt 0:01:03]} Kb8 {[%emt 0:00:18]} 67. Ka6 {[%emt 0:00:41]} Ka8 {[%emt 0:00:44]} 68. Ra7+ {[%emt 0:00:12]} Kb8 {[%emt 0:00:09]} 69. Bc7+ {[%emt 0:00:06]} Kc8 {[%emt 0:00:55]} 70. Ra8+ {[%emt 0:00:08]} 1-0

[Event "21st Sants Open 2019"]
[Site "Cotxeres de Sants"]
[Date "2019.08.23"]
[Round "1.18"]
[White "Lambert Pont, James"]
[Black "Gamisans Cassi, Marc"]
[Result "1/2-1/2"]
[ECO "A40"]
[WhiteElo "1399"]
[BlackElo "1647"]
[Annotator "NA"]
[PlyCount "37"]
[EventDate "2019.08.22"]
[EventType "swiss"]
[EventCountry "ESP"]
[SourceTitle "playchess.com"]
[Source "ChessBase"]
[SourceQuality "1"]
[TimeControl "40/5400+30:1800+30"]

1. d4 {[%emt 0:05:38]} e6 {[%emt 0:00:00]} 2. Bf4 {[%emt 0:01:09]} f5 {[%emt 0:00:00]} 3. Nf3 {[%emt 0:00:20]} Nf6 {[%emt 0:00:09]} 4. e3 {[%emt 0:00:56]} d5 {[%emt 0:00:14]} 5. c4 {[%emt 0:01:51]} Bd6 {[%emt 0:00:29]} 6. Ne5 {[%emt 0:02:47]} Nbd7 {[%emt 0:01:27]} 7. Nc3 {[%emt 0:06:01]} O-O {[%emt 0:06:21]} 8. Qb3 {[%emt 0:11:55]} Bxe5 {[%emt 0:15:06]} 9. dxe5 {[%emt 0:06:56]} Nc5 {[%emt 0:10:55]} 10. Qb5 {[%emt 0:09:47]} Nfe4 {[%emt 0:02:57]} 11. Nxe4 {[%emt 0:00:47]} Nxe4 {[%emt 0:00:20]} 12. f3 {[%emt 0:01:34]} c6 {[%emt 0:03:36]} 13. Qb4 {[%emt 0:03:44]} Ng5 {[%emt 0:07:36]} 14. Bxg5 {[%emt 0:03:05]} Qxg5 {[%emt 0:00:17]} 15. f4 {[%emt 0:01:10]} Qg4 {[%emt 0:06:19]} 16. cxd5 {[%emt 0:16:16]} cxd5 {[%emt 0:04:07]} 17. Qe7 {[%emt 0:01:23]} Rf7 18. Qe8+ Rf8 19. Qe7 1/2-1/2

[Event "21st Sants Open 2019"]
[Site "Cotxeres de Sants"]
[Date "2019.08.23"]
[Round "1.19"]
[White "Mercader Rubio, Luis"]
[Black "Masic, Tigran"]
[Result "0-1"]
[ECO "B34"]
[WhiteElo "1645"]
[BlackElo "1399"]
[Annotator "NA"]
[PlyCount "86"]
[EventDate "2019.08.22"]
[EventType "swiss"]
[EventCountry "ESP"]
[SourceTitle "playchess.com"]
[Source "ChessBase"]
[SourceQuality "1"]
[TimeControl "40/5400+30:1800+30"]

1. e4 {[%emt 0:00:00]} c5 {[%emt 0:00:19]} 2. Nf3 {[%emt 0:00:00]} Nc6 {[%emt 0:00:38]} 3. d4 {[%emt 0:00:35]} cxd4 {[%emt 0:00:27]} 4. Nxd4 {[%emt 0:00:08]} g6 {[%emt 0:01:02]} 5. Nc3 {[%emt 0:00:25]} Bg7 {[%emt 0:00:15]} 6. Be3 {[%emt 0:00:09]} Nf6 {[%emt 0:00:25]} 7. Nxc6 {[%emt 0:01:40]} bxc6 {[%emt 0:00:17]} 8. Bd3 {[%emt 0:00:25]} d5 {[%emt 0:03:35]} 9. exd5 {[%emt 0:10:04]} cxd5 {[%emt 0:01:55]} 10. Bb5+ {[%emt 0:02:16]} Bd7 {[%emt 0:00:55]} 11. O-O {[%emt 0:09:49]} O-O {[%emt 0:03:05]} 12. Bxd7 {[%emt 0:02:43]} Qxd7 {[%emt 0:00:23]} 13. Bd4 {[%emt 0:00:14]} e6 {[%emt 0:01:06]} 14. Qf3 {[%emt 0:02:07]} Ne8 {[%emt 0:01:32]} 15. Bc5 {[%emt 0:02:34]} Nd6 {[%emt 0:00:35]} 16. Rfd1 {[%emt 0:05:35]} Rfe8 {[%emt 0:04:14]} 17. Qh3 {[%emt 0:00:38]} Qc6 {[%emt 0:03:25]} 18. Bxd6 {[%emt 0:07:34]} Qxd6 {[%emt 0:00:57]} 19. Rab1 {[%emt 0:00:57]} Rab8 {[%emt 0:03:00]} 20. b3 {[%emt 0:01:36]} Rec8 {[%emt 0:02:34]} 21. Ne4 {[%emt 0:03:41]} Qc6 {[%emt 0:01:03]} 22. Ng5 {[%emt 0:00:29]} h6 {[%emt 0:00:37]} 23. Nf3 {[%emt 0:07:03]} Qxc2 {[%emt 0:00:17]} 24. Qg4 {[%emt 0:00:30]} Qxa2 {[%emt 0:02:15]} 25. h4 {[%emt 0:00:40]} Rxb3 {[%emt 0:05:01]} 26. Rxb3 {[%emt 0:01:58]} Qxb3 {[%emt 0:00:21]} 27. Re1 {[%emt 0:00:52]} d4 {[%emt 0:01:01]} 28. h5 {[%emt 0:01:07]} g5 {[%emt 0:05:05]} 29. Nxg5 {[%emt 0:01:04]} d3 {[%emt 0:02:45]} 30. Nxe6 {[%emt 0:01:12]} fxe6 {[%emt 0:00:19]} 31. Rxe6 {[%emt 0:00:21]} d2 {[%emt 0:02:26]} 32. Rd6 {[%emt 0:00:58]} Rc1+ {[%emt 0:02:53]} 33. Kh2 {[%emt 0:00:09]} d1=Q {[%emt 0:00:38]} 34. Rxd1 {[%emt 0:01:10]} Rxd1 {[%emt 0:02:01]} 35. Qc8+ {[%emt 0:00:19]} Bf8 {[%emt 0:02:11]} 36. Qg4+ {[%emt 0:00:31]} Kh8 {[%emt 0:01:16]} 37. Qf5 {[%emt 0:02:06]} Qg8 {[%emt 0:02:02]} 38. g3 {[%emt 0:01:13]} Rd5 {[%emt 0:00:56]} 39. Qf3 {[%emt 0:01:17]} a5 {[%emt 0:00:30]} 40. Kh3 {[%emt 0:00:00]} a4 {[%emt 0:00:00]} 41. g4 {[%emt 0:01:58]} a3 {[%emt 0:01:14]} 42. Qc3+ {[%emt 0:00:12]} Qg7 {[%emt 0:00:19]} 43. Qb3 {[%emt 0:00:20]} Rd2 {[%emt 0:01:46]} 0-1

[Event "21st Sants Open 2019"]
[Site "Cotxeres de Sants"]
[Date "2019.08.23"]
[Round "1.20"]
[White "Thingstad, Tormod"]
[Black "Tortosa Moros, Joan"]
[Result "0-1"]
[ECO "E20"]
[WhiteElo "1395"]
[BlackElo "1640"]
[Annotator "NA"]
[PlyCount "54"]
[EventDate "2019.08.22"]
[EventType "swiss"]
[EventCountry "ESP"]
[SourceTitle "playchess.com"]
[Source "ChessBase"]
[SourceQuality "1"]
[TimeControl "40/5400+30:1800+30"]

1. d4 {[%emt 0:00:00]} Nf6 {[%emt 0:07:03]} 2. c4 e6 {[%emt 0:00:00]} 3. Nc3 {[%emt 0:01:01]} Bb4 {[%emt 0:01:05]} 4. Bd2 b6 {[%emt 0:00:22]} 5. Nf3 {[%emt 0:03:39]} Bb7 {[%emt 0:00:49]} 6. e3 {[%emt 0:03:17]} O-O {[%emt 0:04:53]} 7. Bd3 {[%emt 0:01:50]} d5 {[%emt 0:02:13]} 8. O-O {[%emt 0:01:08]} dxc4 {[%emt 0:04:18]} 9. Bxc4 {[%emt 0:03:17]} Nbd7 {[%emt 0:01:03]} 10. Re1 {[%emt 0:05:32]} c5 {[%emt 0:03:31]} 11. a3 {[%emt 0:01:14]} Bxc3 {[%emt 0:02:10]} 12. Bxc3 {[%emt 0:02:23]} Ne4 {[%emt 0:02:19]} 13. Qc2 {[%emt 0:00:59]} Nxc3 {[%emt 0:03:00]} 14. Qxc3 {[%emt 0:00:33]} Bxf3 {[%emt 0:00:31]} 15. gxf3 {[%emt 0:00:40]} Qg5+ {[%emt 0:03:24]} 16. Kh1 {[%emt 0:02:12]} Qh4 {[%emt 0:02:07]} 17. Qc2 {[%emt 0:05:27]} cxd4 {[%emt 0:04:54]} 18. exd4 {[%emt 0:04:31]} Nf6 {[%emt 0:05:06]} 19. Qe2 {[%emt 0:03:47]} Rad8 {[%emt 0:03:02]} 20. Rac1 {[%emt 0:01:36]} Rxd4 {[%emt 0:02:54]} 21. Rg1 {[%emt 0:01:55]} Rfd8 {[%emt 0:10:05]} 22. Bxe6 {[%emt 0:04:18]} fxe6 {[%emt 0:05:17]} 23. Qxe6+ {[%emt 0:04:09]} Kh8 {[%emt 0:04:58]} 24. Qf7 {[%emt 0:03:22]} R4d7 {[%emt 0:01:49]} 25. Qe6 {[%emt 0:04:49]} Qf4 {[%emt 0:03:40]} 26. Qe2 {[%emt 0:01:55]} Re8 27. Rc8 Rxc8 0-1